Cogmind - Beta 14 @@@ ROGUE MODE // 2024.11.04 @ 15:44:32 Player: Kole Result: Destroyed by as-19246 with Assembled Maul Performance ------------- Evolutions (0) 0 Regions Visited (2) 400 Robots Destroyed (11) 55 Value Destroyed (262) 262 Prototype IDs (0) 0 Alien Tech Used (0) 0 Bonus (0) 0 TOTAL SCORE: 717 Bonus ------- None Cogmind --------- Core Integrity 0/250 Matter 293/300 Energy 20/100 System Corruption 5% Temperature Warm (180) Movement Core (100) Ox1 Location -10/Mines Parts ------- > --- POWER (1) -------- (None) > --- PROPULSION (2) --- (None) > --- UTILITY (2) ------ Core Shielding > --- WEAPON (2) ------- Particle Gun > --- INVENTORY (5) ---- Aluminum Leg Aluminum Leg Carbon-fiber Leg EM Pulse Gun Peak State ------------ > --- POWER ------------ Light Ion Engine > --- PROPULSION ------- Aluminum Leg Carbon-fiber Leg > --- UTILITY ---------- Medium Storage Unit > --- WEAPON ----------- Particle Gun Beamcaster > --- INVENTORY -------- Light Nuclear Core Aluminum Leg Aluminum Leg Visual Processing Unit Core Shielding EM Pulse Gun Mining Laser [Rating: 14] Favorites ----------- Power Light Ion Engine Engine Light Ion Engine Propulsion Aluminum Leg Leg Aluminum Leg Utility Signal Interpreter Storage Medium Storage Unit Processor Signal Interpreter Protection Core Shielding Weapon Medium Laser Energy Gun Medium Laser Build | -11 -10 -10 ------- Run | Yrd Mat Min Slots Evolved . | . . . Power . | . . . Propulsion . | . . . Utility . | . . . Weapon . | . . . Parts Attached 18 | 6 4 8 Power 3 | 1 1 1 Engine 3 | 1 1 1 Core . | . . . Reactor . | . . . Propulsion 6 | 2 2 2 Treads . | . . . Leg 6 | 2 2 2 Wheel . | . . . Hover . | . . . Flight . | . . . Utility 4 | 1 1 2 Device . | . . . Storage 2 | 1 . 1 Processor 1 | . 1 . Hackware . | . . . Protection 1 | . . 1 Artifact . | . . . Weapon 5 | 2 . 3 Energy Gun 5 | 2 . 3 Energy Cannon . | . . . Ballistic Gun . | . . . Ballistic Cannon . | . . . Launcher . | . . . Special Weapon . | . . . Impact Weapon . | . . . Slashing Weapon . | . . . Piercing Weapon . | . . . Special Melee Weapon . | . . . Unidentified Prototypes . | . . . Parts Lost 9 | . 1 8 Power 3 | . 1 2 Propulsion 1 | . . 1 Utility 2 | . . 2 Weapon 3 | . . 3 Highest Loss Streak 8 | . 1 8 To Critical Strikes . | . . . Average Slot Usage (%) 97 | . 95 98 Engine 13 | . 14 13 Leg 27 | . 28 27 Storage 13 | . 14 13 Processor 12 | . 9 13 Energy Gun 27 | . 28 27 Peak Build Rating 14 | 6 8 14 Average Rating 7 | 3 6 8 On Entrance 4 | . 6 8 Naked Turns . | . . . Heaviest Build 17 | 14 14 17 Greatest Support 25 | 20 20 25 Greatest Overweight (x) 3 | 3 . . Average Overweight (x) . | . . . Largest Inventory Capacity 10 | 8 8 10 Average Capacity 9 | 7 8 9 Most Carried 10 | 5 7 10 Average Carried 6 | 3 4 7 Final Capacity 8 | 8 8 5 Final Carried 7 | 2 7 4 Class Distribution -------------------- 100% | Mutant Dominant Class ---------------- Mutant | -10/Materials Mutant | -10/Mines Resources | -11 -10 -10 ----------- Run | Yrd Mat Min Matter Collected 353 | 191 104 58 Remotely . | . . . Salvage Created 303 | . 223 80 Parts 28 | . 16 12 Haulers Intercepted . | . . . Recyclers Shooed . | . . . Parts Field Recycled . | . . . Retrieved Matter . | . . . Parts Self-Destructed . | . . . Prevented . | . . . Kills | -11 -10 -10 ------- Run | Yrd Mat Min Combat Hostiles Destroyed 11 | . 5 6 Guns 11 | . 5 6 Classes Destroyed 4 | . 2 2 Watcher 1 | . 1 . Swarmer 5 | . . 5 Grunt 5 | . 5 . Assembled 1 | . . 1 Best Kill Streak 3 | . 2 3 Combat Bots Only 3 | . 2 3 Max Kills in Single Turn 2 | . 2 2 Gunslinging 1 | . 1 . Exploded . | . . . Melee . | . . . Uniques/NPCs Destroyed . | . . . Combat | -11 -10 -10 -------- Run | Yrd Mat Min Hostile Shots Fired 97 | . 36 61 Missed 23 | . 10 13 Damage Taken 910 | . 319 591 Core 257 | . 51 206 Absorbed by Shields . | . . . Redirected to Shielding 20 | . . 20 Core Remaining (%) 100 | 100 . . Volleys Fired 37 | . 21 16 Largest 2 | . 2 2 Hottest 140 | . 100 140 Shots Fired 73 | . 42 31 Gun 73 | . 42 31 Cannon . | . . . Launcher . | . . . Special . | . . . Kinetic . | . . . Thermal 73 | . 42 31 Explosive . | . . . Electromagnetic . | . . . Robot Hit Streak 7 | . 7 3 Robot Miss Streak 4 | . 4 3 Penetration Max . | . . . Secondary Targets 2 | . 2 . Max Gunslinging Chain 1 | . 1 . Shots Hit Robots 36 | . 24 12 Core Hits 24 | . 14 10 Critical Kills . | . . . Critical Parts Destroyed . | . . . Critical Strikes 2 | . 2 . Burn 2 | . 2 . Melee Attacks . | . . . Impact . | . . . Slashing . | . . . Piercing . | . . . Sneak Attacks . | . . . Combat Hostiles . | . . . Follow-up Attacks . | . . . Damage Inflicted 508 | . 323 185 Guns 508 | . 323 185 Cannons . | . . . Explosions . | . . . Melee . | . . . Ramming . | . . . Kinetic . | . . . Thermal 508 | . 323 185 Explosive . | . . . Electromagnetic . | . . . Impact . | . . . Slashing . | . . . Piercing . | . . . Highest Corruption 5 | . . 5 Average Corruption 5 | . . 5 Corruption Purged . | . . . Corruption Blocked . | . . . Overload Shots . | . . . Overflow Damage . | . . . Projectiles . | . . . Explosions . | . . . Melee . | . . . Knockbacks . | . . . Impact . | . . . Kinetic . | . . . Secondary . | . . . Self-Inflicted Damage . | . . . Shots . | . . . Rammed . | . . . Targets Rammed . | . . . Kicked . | . . . Crushed . | . . . Highest Temperature 393 | . 393 305 Average Temperature 137 | . 150 118 Received Heat Transfer 389 | . 180 209 Effects 4 | . 3 1 Shutdowns 1 | . 1 . Energy Bleed 2 | . 2 . Damage (minor) 1 | . . 1 Siege Activations . | . . . Robots Corrupted . | . . . Combat Hostiles . | . . . Parts Fried . | . . . Impact Corruptions . | . . . Robots Melted . | . . . Combat Hostiles . | . . . Parts Melted 4 | . 4 . Heat Transferred 1628 | . 1110 518 Parts Sabotaged . | . . . Parts Stolen . | . . . Parts Stripped . | . . . Power Chain Reactions . | . . . Alert | -11 -10 -10 ------- Run | Yrd Mat Min Peak Influence 204 | . 156 204 Initial 60 | . . 60 Average 78 | . 81 83 Maximum Alert Level 1 | . . 1 Low Security (%) 81 | 100 100 73 Level 1 18 | . . 26 Level 2 . | . . . Level 3 . | . . . Level 4 . | . . . Level 5 . | . . . High Security . | . . . Max Security . | . . . Squads Dispatched 2 | . 2 . Investigation 1 | . 1 . Extermination . | . . . Reinforcement 1 | . 1 . Assault . | . . . Garrison . | . . . Intercept . | . . . Searches Triggered . | . . . Construction Impeded . | . . . Haulers Reinforced . | . . . Active Scanning Responses . | . . . Cargo Convoy Interrupts . | . . . Stealth | -11 -10 -10 --------- Run | Yrd Mat Min Distress Signals . | . . . Communications Jammed . | . . . Distress Signals . | . . . Times Spotted 26 | . 10 16 Peak Tracking Total 7 | . 3 7 Tactical Retreats 1 | . . 1 Traps | -11 -10 -10 ------- Run | Yrd Mat Min Traps Triggered . | . . . Indirectly . | . . . Trap Hack Attempts . | . . . Triggered . | . . . Disarmed 1 | . 1 . Reprogrammed . | . . . Reused . | . . . Traps Extracted . | . . . Installed . | . . . Triggered . | . . . Machines | -11 -10 -10 ---------- Run | Yrd Mat Min Machines Disabled . | . . . Max in Single Turn . | . . . Machines Repaired . | . . . Machines Dismantled . | . . . Machines Sabotaged . | . . . Overloaded Fab Kills . | . . . Hacking | -11 -10 -10 --------- Run | Yrd Mat Min Machines Accessed 6 | . 4 2 Terminals 6 | . 4 2 Fabricators . | . . . Repair Stations . | . . . Recycling Units . | . . . Scanalyzers . | . . . Garrison Access . | . . . Total Hacks 22 | . 12 10 Successful 12 | . 7 5 Failed 10 | . 5 5 Catastrophic 1 | . 1 . Database Lockouts . | . . . Manual 16 | . 6 10 Terminals 22 | . 12 10 Fabricators . | . . . Repair Stations . | . . . Recycling Units . | . . . Scanalyzers . | . . . Garrison Access . | . . . Terminal Hacks 5 | . 4 1 Terminal Index 2 | . 1 1 Locate Traps 1 | . 1 . Disarm Traps 1 | . 1 . Zone Layout 1 | . 1 . Fabricator Hacks . | . . . Repair Station Hacks . | . . . Recycling Unit Hacks . | . . . Scanalyzer . | . . . Garrison Access Hacks . | . . . Unauthorized Hacks 7 | . 3 4 Terminals 7 | . 3 4 Track 2 | . . 2 Botnet 5 | . 3 2 Fabricators . | . . . Repair Stations . | . . . Recycling Units . | . . . Scanalyzers . | . . . Garrison Access . | . . . Data Cores Recovered . | . . . Used . | . . . Hacking Detections 5 | . 3 2 Full Trace Events 4 | . 3 1 Feedback Events . | . . . Feedback Blocked . | . . . Robot Schematics Acquired . | . . . Robots Built . | . . . Authchips . | . . . Time . | . . . Total Robot Build Rating . | . . . Part Schematics Acquired . | . . . Parts Built . | . . . Authchips . | . . . Time . | . . . Total Part Build Rating . | . . . Parts Repaired . | . . . Time . | . . . Parts Recycled . | . . . Recycled Matter . | . . . Retrieved Matter . | . . . Retrieved Components . | . . . Parts Scanalyzed . | . . . Part Schematics Acquired . | . . . Parts Damaged . | . . . Bothacking | -11 -10 -10 ------------ Run | Yrd Mat Min Used RIF Installer . | . . . Robots Hacked . | . . . Non-combat . | . . . Combat . | . . . Robot Hacks Applied . | . . . Relay Couplers Released . | . . . Fabnet Peak Effective % . | . . . Robots Rewired . | . . . Allies Hacked . | . . . Hacks Repelled . | . . . Allies | -11 -10 -10 -------- Run | Yrd Mat Min Total Allies . | . . . Largest Group . | . . . Highest-Rated Group . | . . . Highest-Rated Ally . | . . . Total Orders . | . . . Ally Attacks . | . . . Total Damage . | . . . Kills . | . . . Allies Corrupted . | . . . Allies Melted . | . . . Intel | -11 -10 -10 ------- Run | Yrd Mat Min Robot Analysis Total . | . . . Derelict Logs Recovered . | . . . Drone Launches . | . . . Drone Recoveries . | . . . Exploration | -11 -10 -10 ------------- Run | Yrd Mat Min Turns Passed 973 | 56 249 668 Spaces Moved 610 | 35 134 441 Core 25 | 19 . 6 Treads . | . . . Legs 585 | 16 134 435 Wheels . | . . . Hover . | . . . Flight . | . . . Fastest Speed 50 | 50 120 50 Average Speed 119 | 120 120 119 Slowest Speed 200 | 200 120 120 Overloaded Moves . | . . . Propulsion Burnouts . | . . . Robots Hopped . | . . . Cave-ins Triggered . | . . . Exploration Rate (%) 32 | 3 28 67 Regions Visited 2 Branch Regions 1 Pre-discovered Areas . | . . . Known Exits Taken 1 | . 1 . Unknown Exits Taken 1 | 1 . . Scrap Searched 1 | . . 1 Spaces Dug . | . . . Terrain Destroyed . | . . . Melee . | . . . Projectile . | . . . AOE . | . . . Terrain Rammed . | . . . Walls Destroyed . | . . . Machines Disabled . | . . . Actions | -11 -10 -10 --------- Run | Yrd Mat Min Total 785 | 49 180 556 Wait 89 | 1 9 79 Move 608 | 34 133 441 Hop . | . . . Pick Up 23 | 8 10 5 Fast Attach . | . . . Attach 13 | 6 2 5 Detach 4 | . . 4 Swap 5 | . 2 3 Drop 6 | . 3 3 Fire 37 | . 21 16 Melee . | . . . Ram . | . . . Kick . | . . . Crush . | . . . Escape Stasis . | . . . Rewire . | . . . Trap . | . . . Miscellaneous . | . . . Route ------- -11/Scrapyard -10/Materials -10/Mines (discovered 2 exits: *Mat x2) History --------- Turn | Location | Event 25 | -11/Scrapyard | Discovered new exit (range 15) 57 | -11/Scrapyard | Entered Materials 263 | -10/Materials | Discovered new exit (range 13) 295 | -10/Materials | Identified exit to Mines 303 | -10/Materials | Build established: Mutant 306 | -10/Materials | Entered Mines 357 | -10/Mines | Discovered new exit (range 8) 364 | -10/Mines | Identified exit to Materials 465 | -10/Mines | Discovered exit to Materials (range 6) 920 | -10/Mines | Assembled infested the area 921 | -10/Mines | Joined a pair of Derelicts in attacking an 0b10 outpost 925 | -10/Mines | Assisted by a Guerilla fighting off Assembled 956 | -10/Mines | Core integrity fell below 50% 970 | -10/Mines | Core integrity fell below 20% 974 | -10/Mines | Destroyed by as-19246 with Assembled Maul Last Messages --------------- reinforcements and keep pressure off our more trafficked cave areas." 00951_ SQ-T1I(g) suffers critical hit (Destroy). 00951_ SQ-T1I(g) destroyed. 00953_ Lgt. Ion Engine destroyed. 00959_ Med. Laser destroyed. 00961_ Signal Interpreter destroyed. 00961_ System corrupted by crushing effect (+5). 00961_ Knocked back. 00964_ as-35653 destroyed. 00967_ Overheating: Core Shielding damaged (-10). 00969_ Dropped Med. Storage Unit. 00969_ Aluminum Leg crushed and broken. 00969_ Beamcaster crushed and broken. 00969_ Visual Processing Unit crushed and broken. 00969_ Lgt. Ion Engine destroyed. 00972_ Acquired 25 matter. 00974_ Acquired 3 matter. Map ----- +----------------------------------------------------+ | # ## ##?# #???????????????# ## ### #???? | | ###?####??# #????? # ##????# ## ##?# #???? | | ????????### #### #????# #??# #???? | | ????????# """ ######### ## #? ???? | | ????????# """ ### ### #? ??? | | ????????# ##### """ ##### #?# ?? | | ????????# #????? ?????# #####? ? | | ????????# #??????? #???## ##?? | | ????????# #????????###???# #?? | | ######### ##?????????????# #?## | | #????????????## #??## ####### | | """" """" #????????????# ##???# ##?????? | | """" """" #????????????# #????## ##??????? | | """" """" ??????????#### #??????# ##???????? | | ????????????# #???????##?????????? | | """" #####???????????# #??????????????????? | | """" #???????????????# #####??????????????? | | """" #???????????????# #??????????????? | | #???????????????##### #??????????????? | | """" #??????????????????## #??????????????? | | """" #?????????????????## #??????????????? | | """" #?????????????##### #??????????????? | | #????????????##![## !##?????????????? | | ############?????????????#%!![#a #####?????????? | | ????????????????????????##*!=*aaa % #??????? | | ????????????????????????#@a[=*a! #######??????? | | ???????????????????????#!#!||%#* #????????????? | | ???????????????????????####!!## ##????????????? | | ??????????????????????????###### #?????????????? | | ???????????????????????????????## #????????????? | | ????????????????????????????????? #????????????? | | ?????????????????????????????????# ##????????????? | | ??????????????????????????????????##?????????????? | | ?????????????????????????????????????????????????? | | ?????????????????????????????????????????????????? | | ?????????????????????????????????????????????????? | | ?????????????????????????????????????????????????? | | ?????????????????????????????????????????????????? | | ?????????????????????????????????????????????????? | | ?????????????????????????????????????????????????? | | ?????????????????????????????????????????????????? | | ?????????????????????????????????????????????????? | | ?????????????????????????????????????????????????? | | ?????????????????????????????????????????????????? | | ?????????????????????????????????????????????????? | | ?????????????????????????????????????????????????? | | | | | | | | | +----------------------------------------------------+ Best States ------------- Heat Dissipation 25 Energy Generation 10 Energy Capacity 250 Matter Stores 300 Matter Capacity 300 Sight Range 16 Terrain Scan Density 10 Core Shielding 20 Evasion (%) 55 Item Schematics ----------------- None Robot Schematics ------------------ None Fabricated ------------ Nothing Alien Tech Used ----------------- None Achievements -------------- None Challenges ------------ None Game ------ Seed VisualOvertunedRefractor Manual? 0 Play Time 00:13:47 Cumulative 11.0 hours Start 2024.11.04 @ 15:15:22 End 2024.11.04 @ 15:44:32 Sessions 4 Manual Loads 0 Difficulty Rogue Special Mode None Game No. 18 Rogue 18 Adventurer 0 Explorer 0 Win Type - Total 0 Types 0/0/0/0/0/0/0/0/0 Lore% 10 Gallery% 17 Achievement% 14 Wizard Run 0 Options --------- Layout 1 ASCII 0 Keyboard 0 Movement Arrows Keybinds 0 Fullscreen 2 Font 24/Smallcaps Map View 50x35 Zoom Use 0% Tactical HUD 1 Map Filters NONE Filters NONE Steam 1 RUN: 8a88dc50-ae39-4099-9dcc-c0ec4c459104